Cogmind - Beta 10.1 @@@ ROGUE MODE // 2020.10.18 @ 15:52:03 Player: albenzo Result: Destroyed by Y-45 Defender with Heavy Assault Rifle Performance ------------- Evolutions (1) 500 Regions Visited (3) 600 Robots Destroyed (28) 140 Value Destroyed (778) 778 Prototype IDs (8) 160 Alien Tech Used (0) 0 Bonus (0) 0 TOTAL SCORE: 2178 Bonus ------- None Cogmind --------- Core Integrity 0/400 Matter 300/300 Energy 96/100 System Corruption 0% Temperature Cool (11) Movement Treading (180) Ox1 Location -9/Storage Parts ------- > --- POWER (1) -------- (None) > --- PROPULSION (2) --- Light Treads Light Treads > --- UTILITY (4) ------ Large Storage Unit Large Storage Unit Large Storage Unit > --- WEAPON (2) ------- (None) > --- INVENTORY (22) --- Improved Ion Engine Reinforced Ion Engine Wheel Heat Sink Small Storage Unit Small Storage Unit Small Storage Unit Small Storage Unit Visual Processing Unit Light Armor Plating Light Armor Plating Beam Rifle Beam Rifle Particle Cannon Particle Cannon Particle Cannon Cooled Plasma Cannon Rocket Launcher Peak State ------------ > --- POWER ------------ Reinforced Ion Engine > --- PROPULSION ------- Compact Wheel > --- UTILITY ---------- Large Storage Unit Large Storage Unit Large Storage Unit Sensor Array > --- WEAPON ----------- Cooled Plasma Cannon Cooled Plasma Cannon > --- INVENTORY -------- Reinforced Ion Engine Wheel Wheel Beam Rifle Light Assault Rifle Heavy Assault Rifle Rocket Launcher [Rating: 20] Favorites ----------- Power Reinforced Ion Engine Engine Reinforced Ion Engine Propulsion Compact Wheel Treads Light Treads Wheel Compact Wheel Utility Large Storage Unit Device Sensor Array Storage Large Storage Unit Processor Seismic Analyzer Protection Light Armor Plating Weapon Assault Rifle Energy Cannon Cooled Plasma Cannon Ballistic Gun Assault Rifle Launcher Rocket Launcher Build | -11 -10 -9 -9 ------- Run | Scr Mat Mat Sto Slots Evolved 2 | . . 2 . Power . | . . . . Propulsion . | . . . . Utility 2 | . . 2 . Weapon . | . . . . Parts Attached 31 | 8 4 2 17 Power 2 | 1 1 . . Engine 2 | 1 1 . . Core . | . . . . Reactor . | . . . . Propulsion 7 | 2 . . 5 Treads 2 | . . . 2 Leg . | . . . . Wheel 5 | 2 . . 3 Hover . | . . . . Flight . | . . . . Utility 10 | 3 2 2 3 Device 4 | 1 1 1 1 Storage 4 | 1 1 1 1 Processor 1 | 1 . . . Hackware . | . . . . Protection 1 | . . . 1 Artifact . | . . . . Weapon 12 | 2 1 . 9 Energy Gun . | . . . . Energy Cannon 3 | . . . 3 Ballistic Gun 8 | 2 1 . 5 Ballistic Cannon . | . . . . Launcher 1 | . . . 1 Special Weapon . | . . . . Impact Weapon . | . . . . Slashing Weapon . | . . . . Piercing Weapon . | . . . . Special Melee Weapon . | . . . . Unidentified Prototypes 1 | . . . 1 Parts Lost 17 | . . . 17 Power 1 | . . . 1 Propulsion 5 | . . . 5 Utility 3 | . . . 3 Weapon 8 | . . . 8 Highest Loss Streak 7 | . . . 7 Average Slot Usage (%) 91 | . 100 100 85 Engine 11 | . 14 11 9 Treads 1 | . . . 2 Wheel 18 | . 28 22 13 Device 11 | . 14 22 9 Storage 25 | . 14 22 31 Energy Cannon 2 | . . . 3 Ballistic Gun 19 | . 28 22 14 Naked Turns . | . . . . Heaviest Build 75 | 12 31 48 75 Greatest Support 40 | 26 26 26 40 Greatest Overweight (x) 4 | 3 1 1 4 Average Overweight (x) 1 | . . 1 2 Largest Inventory Capacity 22 | 6 10 16 22 Average Capacity 15 | 5 7 16 21 Most Carried 22 | 6 10 9 22 Average Carried 11 | 5 7 8 14 Final Capacity 22 | 6 10 16 22 Final Carried 18 | 6 10 8 18 Class Distribution -------------------- 50% | Hauler-Mutant 49% | Mutant Dominant Class ---------------- Mutant | -10/Materials Mutant | -9/Materials Hauler-Mutant | -9/Storage Resources | -11 -10 -9 -9 ----------- Run | Scr Mat Mat Sto Matter Collected 859 | 346 96 . 417 Remotely . | . . . . Salvage Created 974 | 172 121 . 681 Parts 77 | 19 5 . 53 Haulers Intercepted . | . . . . Recyclers Shooed 2 | . . . 2 Parts Field Recycled . | . . . . Retrieved Matter . | . . . . Parts Self-Destructed . | . . . . Prevented . | . . . . Kills | -11 -10 -9 -9 ------- Run | Scr Mat Mat Sto Combat Hostiles Destroyed 20 | . 3 . 17 Guns 14 | . 3 . 11 Cannons 6 | . . . 6 Classes Destroyed 7 | 3 1 . 3 Worker 3 | 2 . . 1 Tunneler 3 | 3 . . . Recycler 1 | 1 . . . Watcher 1 | . . . 1 Swarmer 3 | . . . 3 Grunt 12 | . 3 . 9 Sentry 5 | . . . 5 Best Kill Streak 6 | 6 2 . 4 Combat Bots Only 4 | . 2 . 4 Max Kills in Single Turn 1 | 1 1 . 1 Gunslinging . | . . . . Exploded . | . . . . Melee . | . . . . Uniques/NPCs Destroyed . | . . . . Combat | -11 -10 -9 -9 -------- Run | Scr Mat Mat Sto Damage Taken 2006 | . 102 29 1875 Core 404 | . . . 404 Absorbed by Shields . | . . . . Core Remaining (%) 100 | 100 100 . . Volleys Fired 106 | 11 11 . 84 Largest 2 | 2 2 . 2 Hottest 70 | 40 40 . 70 Shots Fired 196 | 22 22 . 152 Gun 165 | 22 22 . 121 Cannon 30 | . . . 30 Launcher 1 | . . . 1 Special . | . . . . Kinetic 165 | 22 22 . 121 Thermal 30 | . . . 30 Explosive 1 | . . . 1 Electromagnetic . | . . . . Robot Hit Streak 18 | 9 18 . 15 Robot Miss Streak 4 | 1 1 . 4 Penetration Max . | . . . . Secondary Targets 1 | . . . 1 Max Gunslinging Chain 1 | . . . 1 Shots Hit Robots 136 | 16 19 . 101 Core Hits 48 | 7 5 . 36 Critical Hits 4 | 1 1 . 2 Critical Kills 1 | 1 . . . Critical Parts Destroyed 3 | . 1 . 2 Melee Attacks . | . . . . Impact . | . . . . Slashing . | . . . . Piercing . | . . . . Sneak Attacks . | . . . . Combat Hostiles . | . . . . Follow-up Attacks . | . . . . Damage Inflicted 1941 | 176 249 . 1516 Guns 1384 | 176 249 . 959 Cannons 504 | . . . 504 Explosions . | . . . . Melee . | . . . . Ramming 53 | . . . 53 Kinetic 1384 | 176 249 . 959 Thermal 504 | . . . 504 Explosive . | . . . . Electromagnetic . | . . . . Impact . | . . . . Slashing . | . . . . Piercing . | . . . . Highest Corruption . | . . . . Average Corruption . | . . . . Corruption Purged . | . . . . Overload Shots . | . . . . Overflow Damage 14 | . . . 14 Projectiles 14 | . . . 14 Explosions . | . . . . Melee . | . . . . Knockbacks . | . . . . Impact . | . . . . Kinetic . | . . . . Secondary . | . . . . Self-Inflicted Damage 6 | . . . 6 Shots 1 | . . . 1 Rammed 7 | . . . 7 Targets Rammed 8 | . . . 8 Kicked . | . . . . Crushed 1 | . . . 1 Highest Temperature 204 | . 9 . 204 Average Temperature 20 | . 4 . 22 Received Heat Transfer 771 | . 57 18 696 Siege Activations . | . . . . Robots Corrupted . | . . . . Combat Hostiles . | . . . . Parts Fried . | . . . . Impact Corruptions . | . . . . Robots Melted . | . . . . Combat Hostiles . | . . . . Parts Melted 2 | . . . 2 Heat Transferred 785 | . . . 785 Parts Sabotaged . | . . . . Parts Stolen . | . . . . Parts Stripped . | . . . . Power Chain Reactions . | . . . . Missiles Intercepted . | . . . . Alert | -11 -10 -9 -9 ------- Run | Scr Mat Mat Sto Peak Influence 385 | 30 144 93 385 Initial 60 | . 19 60 39 Average 169 | 9 63 70 263 Maximum Alert Level 1 | . . . 1 Low Security (%) 56 | 100 100 100 22 Level 1 43 | . . . 77 Level 2 . | . . . . Level 3 . | . . . . Level 4 . | . . . . Level 5 . | . . . . High Security . | . . . . Max Security . | . . . . Squads Dispatched 3 | . 1 . 2 Investigation 1 | . 1 . . Extermination . | . . . . Reinforcement 2 | . . . 2 Assault . | . . . . Garrison . | . . . . Intercept . | . . . . Construction Impeded . | . . . . Haulers Reinforced . | . . . . Stealth | -11 -10 -9 -9 --------- Run | Scr Mat Mat Sto Distress Signals 1 | . . . 1 Communications Jammed . | . . . . Distress Signals . | . . . . Times Spotted 40 | . 7 2 31 Peak Tracking Total 8 | . 2 2 8 Tactical Retreats 4 | . . . 4 Traps | -11 -10 -9 -9 ------- Run | Scr Mat Mat Sto Traps Triggered 3 | . 2 . 1 Indirectly . | . . . . Trap Hack Attempts . | . . . . Triggered . | . . . . Disarmed . | . . . . Reprogrammed . | . . . . Reused . | . . . . Traps Extracted . | . . . . Installed . | . . . . Triggered . | . . . . Machines | -11 -10 -9 -9 ---------- Run | Scr Mat Mat Sto Machines Disabled 3 | . . . 3 Max in Single Turn 1 | . . . 1 Machines Sabotaged . | . . . . Garrisons Compromised . | . . . . Overloaded Fab Kills . | . . . . Fab Network Shutdowns . | . . . . Hacking | -11 -10 -9 -9 --------- Run | Scr Mat Mat Sto Machines Accessed 8 | . 3 1 4 Terminals 7 | . 2 1 4 Fabricators . | . . . . Repair Stations . | . . . . Recycling Units 1 | . 1 . . Scanalyzers . | . . . . Garrison Access . | . . . . Total Hacks 40 | . 11 3 26 Successful 25 | . 9 2 14 Failed 15 | . 2 1 12 Catastrophic 2 | . . . 2 Database Lockouts . | . . . . Manual 33 | . 9 2 22 Terminals 36 | . 7 3 26 Fabricators . | . . . . Repair Stations . | . . . . Recycling Units 4 | . 4 . . Scanalyzers . | . . . . Garrison Access . | . . . . Terminal Hacks 10 | . 2 1 7 Part Schematic 1 | . . . 1 Prototype ID Bank 4 | . 1 1 2 Branch Access Points 1 | . . . 1 Locate Traps 1 | . . . 1 Patrol Status 1 | . . . 1 Recall Investigation 2 | . 1 . 1 Fabricator Hacks . | . . . . Repair Station Hacks . | . . . . Recycling Unit Hacks 1 | . 1 . . Report Inventory 1 | . 1 . . Scanalyzer . | . . . . Garrison Access Hacks . | . . . . Unauthorized Hacks 14 | . 6 1 7 Terminals 12 | . 4 1 7 Track 7 | . 2 1 4 Botnet 5 | . 2 . 3 Fabricators . | . . . . Repair Stations . | . . . . Recycling Units 2 | . 2 . . Monitor 1 | . 1 . . Recyclers 1 | . 1 . . Scanalyzers . | . . . . Garrison Access . | . . . . Data Cores Recovered . | . . . . Used . | . . . . Hacking Detections 8 | . 3 1 4 Full Trace Events . | . . . . Feedback Events . | . . . . Feedback Blocked . | . . . . Robot Schematics Acquired . | . . . . Robots Built . | . . . . Matter . | . . . . Time . | . . . . Total Robot Build Rating . | . . . . Part Schematics Acquired 1 | . . . 1 Parts Built . | . . . . Matter . | . . . . Time . | . . . . Total Part Build Rating . | . . . . Parts Repaired . | . . . . Time . | . . . . Parts Recycled . | . . . . Recycled Matter . | . . . . Retrieved Matter . | . . . . Retrieved Components . | . . . . Parts Scanalyzed . | . . . . Part Schematics Acquired . | . . . . Parts Damaged . | . . . . Bothacking | -11 -10 -9 -9 ------------ Run | Scr Mat Mat Sto Used RIF Installer . | . . . . Robots Hacked . | . . . . Non-combat . | . . . . Combat . | . . . . Robot Hacks Applied . | . . . . Relay Couplers Released . | . . . . Robots Rewired . | . . . . Allies Hacked . | . . . . Hacks Repelled . | . . . . Allies | -11 -10 -9 -9 -------- Run | Scr Mat Mat Sto Total Allies . | . . . . Largest Group . | . . . . Highest-Rated Group . | . . . . Highest-Rated Ally . | . . . . Total Orders . | . . . . Ally Attacks . | . . . . Total Damage . | . . . . Kills . | . . . . Allies Corrupted . | . . . . Allies Melted . | . . . . Intel | -11 -10 -9 -9 ------- Run | Scr Mat Mat Sto Robot Analysis Total . | . . . . Derelict Logs Recovered . | . . . . Drone Launches . | . . . . Drone Recoveries . | . . . . Exploration | -11 -10 -9 -9 ------------- Run | Scr Mat Mat Sto Turns Passed 1429 | 153 378 99 799 Spaces Moved 847 | 101 323 96 327 Core 8 | 8 . . . Treads 35 | . . . 35 Legs . | . . . . Wheels 804 | 93 323 96 292 Hover . | . . . . Flight . | . . . . Fastest Speed 50 | 50 90 100 100 Average Speed 107 | 95 93 100 127 Slowest Speed 200 | 200 100 100 180 Overloaded Moves . | . . . . Propulsion Burnouts . | . . . . Robots Hopped . | . . . . Cave-ins Triggered . | . . . . Exploration Rate (%) 29 | 5 49 14 48 Regions Visited 3 Branch Regions 1 Pre-discovered Areas . | . . . . Known Exits Taken . | . . . . Unknown Exits Taken 3 | 1 1 1 . Scrap Searched . | . . . . Spaces Dug . | . . . . Terrain Destroyed 17 | . . . 17 Melee . | . . . . Projectile 10 | . . . 10 AOE 7 | . . . 7 Terrain Rammed . | . . . . Walls Destroyed . | . . . . Machines Disabled . | . . . . Actions | -11 -10 -9 -9 --------- Run | Scr Mat Mat Sto Total 1172 | 136 380 99 557 Wait 125 | . 25 2 98 Move 844 | 100 322 95 327 Hop . | . . . . Pick Up 42 | 11 10 . 21 Fast Attach 12 | 8 1 . 3 Attach 13 | . . 2 11 Detach 2 | 1 . . 1 Swap 6 | . 3 . 3 Drop 14 | 5 8 . 1 Fire 106 | 11 11 . 84 Melee . | . . . . Ram . | . . . . Kick . | . . . . Crush 8 | . . . 8 Escape Stasis . | . . . . Rewire . | . . . . Trap . | . . . . Miscellaneous . | . . . . Route ------- -11/Scrapyard -10/Materials (discovered 2 exits: *Mat / [*Min]) -9/Materials -9/Storage (discovered 1 exit: Rec) History --------- Turn | Location | Event 18 | -11/Scrapyard | Discovered new exit (range 15) 154 | -11/Scrapyard | Entered Materials 205 | -10/Materials | Discovered new exit (range 14) 307 | -10/Materials | Build established: Mutant 515 | -10/Materials | Discovered new exit (range 6) 532 | -10/Materials | Entered another Materials area 532 | -9/Materials | Evolved 2 slots: Utility x2 554 | -9/Materials | Discovered new exit (range 15) 631 | -9/Materials | Entered Storage 633 | -9/Storage | Identified exit to Recycling 760 | -9/Storage | Lost 7 parts (3n1u3w) 1027 | -9/Storage | Build established: Hauler-Mutant 1038 | -9/Storage | Core integrity fell below 50% 1335 | -9/Storage | Lost 3 parts (2n1w) 1343 | -9/Storage | Core integrity fell below 20% 1385 | -9/Storage | Lost 5 parts (1p1u3w) 1430 | -9/Storage | Destroyed by Y-45 Defender with Heavy Assault Rifle Last Messages --------------- 01351_ Particle Cannon destroyed. 01354_ Rnf. Ion Engine destroyed. 01355_ Slammed into Y-45 Defender. 01356_ Acquired 33 matter. 01356_ Crushed K-01 Serf. 01356_ K-01 Serf destroyed. 01357_ K-01 Serf collects debris. 01360_ Acquired 52 matter. 01363_ R-06 Scavenger collects Wheel. 01364_ Slammed into R-06 Scavenger. 01365_ K-01 Serf collects debris. 01365_ Slammed into R-06 Scavenger. 01367_ Slammed into K-01 Serf. 01371_ Slammed into A-02 Transporter. 01382_ Slammed into R-06 Scavenger. 01387_ Slammed into O-16 Technician. 01404_ K-01 Serf cleans the Compression Vault. 01413_ ALERT: Hostiles spotted, dispatching reinforcements to Terminal S013. 01415_ K-01 Serf cleans the Compression Vault. Map ----- +----------------------------------------------------+ | ?????????????????????????????????????????????????? | | ?????????????????????????????????????????????????? | | ?????????????????????????????????????????????????? | | ?????????????????????????????????????????????????? | | ?????????????????????????????????????????????????? | | ?????????????????????????????????????????????????? | | ?????????????????????????????????????????????????? | | ?????????????????????????????????????????????????? | | ?????????????????????????????????????????????????? | | ?????????????????????????????????????????????????? | | ??????>??????????????????????????????????????????? | | ?????????????????????????????????????????????????? | | ?????????????????????????????????????????????????? | | ?????????????????????????????????????????????????? | | ?????????????????????????????????????????????????? | | ?????????????????????????????????????????????????? | | ?????????????????????????????????????????????????? | | ?????????????????????????????????????????????????? | | ?????????????????????????????????????????????????? | | ????????????????????????????????????##???????????? | | ????????????????????????????######## ##??????????? | | ????????????????????????????# #??????????? | | ????????????????????????????# #+###+#????? | | ????????????????????????????# """ """ # ????? | | ?????????? k ####+#####g""" """ + ? ????? | | ????????????????# ur @ Y """ """ #??? ????? | | ????????????????# #####a k #???# #????? | | ????????????????#+###+??????# ! #???# ####?? | | ????????????????????????????# #???# #T"#?? | | ????????????????????????????#########+##### # "### | | ????????????????????????????????????# % % | | ????????????????????????????????????############## | | ???????????????????????????############??????????# | | ???????????????????????????# ##### ####???##### | | ???????????????????????????# # % #???# | | ???????????????????????????#^^^# """#???# | | ???????????????????????????# # """#???#!![ " | | ???????????????????????????# # ""#???#!![ T | | ???????????????????????????# + % #???#!![ " | | ???????????????????????????# # """#????? | | ???????????????????????????# a# %% % ""#?????##+# | | ???????????????????????????# # % ""####### | | ????????????????????#####??# # % + = | | ???????????????#######!###?# ################ | | ???????????????# % #?# # T #?##^# | | ?????????####### #?# # """ % #??#^# | | ?????????# # #?# # """ #??# # | | ?????????# # w #?# # """ +?^ # | | ???#?????# " #?# # #?^^ # | | ?????????# # [#?# #####+##a#####o? # | +----------------------------------------------------+ Best States ------------- Heat Dissipation 28 Energy Generation 12 Energy Capacity 265 Matter Stores 300 Matter Capacity 300 Sight Range 16 Robot Scan Range 10 Terrain Scan Range 16 Terrain Scan Density 10 Armor Coverage 150 Evasion (%) 42 Recoil Reduction 2 Item Schematics ----------------- Sensor Array | -9/Storage | Hacked Robot Schematics ------------------ None Fabricated ------------ Nothing Alien Tech Used ----------------- None Achievements -------------- Quantum Hacking Challenges ------------ None Game ------ Seed MolecularHardcellShield Manual? 0 Play Time 00:18:44 Cumulative 33.1 hours Start 2020.10.18 @ 15:26:25 End 2020.10.18 @ 15:52:03 Sessions 1 Manual Loads 0 Difficulty Rogue Special Mode None Game No. 44 Rogue 44 Adventurer 0 Explorer 0 Win Type - Total 0 Types 0/0/0/0/0/0/0/0/0 Lore% 44 Gallery% 37 Achievement% 32 Wizard Run 0 Options --------- ASCII 0 Keyboard 1 Movement Vi Keybinds 0 Fullscreen 2 Font 24/Proggy Map View 76x50 Tactical HUD 1 Map Filters NONE Filters NONE Steam 1 RUN: e08addb4-f302-4ad5-9c7e-91663cf047f6